bitfinex-derivatives/quotes_SOLF0:USTF0_20250527
["timestamp","ask_amount","ask_price","bid_price","bid_amount"]
[1748340901001,5.682,175.93,175.88,3.24075238]
[1748340901193,5.682,175.93,175.9,5.6826]
[1748340901499,0.03901339,175.93,175.9,0.04030603]
[1748340901698,0.03901339,175.93,175.9,3.28105841]
[1748340902101,2.73762904,175.92,175.91,5.6825]
[1748340902303,0.03901339,175.93,175.9,3.28105841]
[1748340903404,5.72101339,175.93,175.9,3.28105841]
[1748340904304,2.73822329,175.92,175.9,0.04030603]
[1748340904507,2.738639,175.91,175.9,5.72310603]
[1748340905201,0.03901339,175.93,175.92,5.6822]
[1748340905505,2.77619142,175.93,175.92,5.6822]
[1748340906499,0.03901339,175.93,175.92,5.6822]
[1748340906693,2.77531491,175.93,175.92,5.6822]
[1748340907403,0.03901339,175.93,175.92,5.6822]
[1748340907903,0.03901339,175.93,175.92,113.6622]
[1748340908604,0.03901339,175.93,175.92,230.2622]
[1748340913300,5.68,175.99,175.96,5.6808]
[1748340914501,5.71999114,175.99,175.97,5.6805]
[1748340915098,5.71999114,175.99,175.96,5.71812808]
[1748340916701,0.03999114,175.99,175.97,5.6805]
[1748340917295,0.03999114,175.99,175.98,5.6802]
[1748340929880,0.03999114,175.99,175.98,8.9124625]
[1748340933088,0.03999114,175.99,175.96,0.03742808]
[1748340933690,5.6804,175.98,175.96,0.03742808]
[1748340936290,5.71999114,175.99,175.96,0.03742808]
[1748340936493,0.03999114,175.99,175.96,0.03742808]
[1748340936694,0.03999114,175.99,175.97,5.6803]
[1748340936989,0.03999114,175.99,175.96,0.03742808]
[1748340937193,0.03999114,175.99,175.97,5.6805]
[1748340940590,0.03999114,175.99,175.96,0.03742808]
[1748340940790,0.03999114,175.99,175.98,5.6802]
[1748340942495,0.03999114,175.99,175.98,121.9802]
[1748340947601,0.03999114,175.99,175.98,116.3]
[1748340947796,0.03999114,175.99,175.96,0.03742808]
[1748340948199,5.6804,175.98,175.96,0.03742808]
[1748340948401,0.03999114,175.99,175.96,0.03742808]
[1748340949103,5.71999114,175.99,175.96,5.71812808]
[1748340949897,2.73559062,175.98,175.96,5.71812808]
[1748340950089,5.71999114,175.99,175.96,5.71812808]
[1748340950601,2.73573944,175.98,175.96,5.71812808]
[1748340950801,5.71999114,175.99,175.96,5.71812808]
[1748340951001,2.73573944,175.98,175.96,5.71812808]
[1748340951197,5.71999114,175.99,175.96,5.71812808]
[1748340951404,2.7359024,175.98,175.96,5.71812808]
[1748340951604,5.71999114,175.99,175.96,5.71812808]
[1748340951906,2.73686375,175.98,175.96,5.71812808]
[1748340952099,5.71999114,175.99,175.96,5.71812808]
[1748340952301,2.73687193,175.98,175.96,5.71812808]
[1748340952494,5.71999114,175.99,175.97,5.6805]
[1748340952792,2.73740112,175.98,175.97,5.6805]
[1748340954706,2.73740112,175.98,175.96,5.71812808]
[1748340954906,5.71999114,175.99,175.96,5.71812808]
[1748340955205,2.73837467,175.98,175.96,5.71812808]
[1748340955404,2.73837467,175.97,175.96,5.71812808]
[1748340957712,2.73935094,175.97,175.96,5.71812808]
[1748340959313,5.71999114,175.99,175.97,5.6805]
[1748340959611,2.73976946,175.98,175.97,5.6805]
[1748340959818,0.03999114,175.99,175.98,5.6802]
[1748340960015,4.0916,176.05,175.98,3.23132528]
[1748340960316,4.0916,176.05,176.0,3.23132528]
[1748340960617,4.0916,176.05,175.99,3.23132528]
[1748340961006,0.03758844,176.04,176.0,0.04235689]
[1748340961817,0.03758844,176.04,176.02,5.6787]
[1748340962005,0.03758844,176.04,176.0,0.04235689]
[1748340962619,0.03758844,176.04,176.03,5.6786]
[1748340963111,0.03758844,176.04,176.0,0.04235689]
[1748340963316,0.03758844,176.04,176.02,5.6787]
[1748340964624,0.03758844,176.04,176.0,0.04235689]
[1748340965723,5.6787,176.03,176.0,5.72195689]
[1748340966017,0.03758844,176.04,176.0,0.04235689]
[1748340966516,0.03758844,176.04,176.01,5.679]
[1748340969521,5.71598844,176.04,176.01,5.679]
[1748340969720,5.71598844,176.04,176.0,5.72185689]
[1748340970421,5.71598844,176.04,176.01,5.6793]
[1748340970721,5.71598844,176.04,176.0,0.04235689]
[1748340970917,5.71598844,176.04,176.0,5.72185689]
[1748340971124,5.6787,176.03,176.0,5.72185689]
[1748340971616,0.03758844,176.04,176.0,5.72185689]
[1748340971617,0.03758844,176.04,176.0,0.04235689]
[1748340971923,2.66786569,176.03,176.0,0.04235689]
[1748340972224,2.66786569,176.02,176.0,0.04235689]
[1748340972425,2.66786569,176.01,176.0,0.04235689]
[1748340972720,2.66824498,176.01,176.0,0.04235689]
[1748340973223,2.66824498,176.01,176.0,5.72195689]
[1748340979924,2.66883427,176.01,176.0,5.72195689]
[1748340986932,2.66923814,176.01,176.0,5.72195689]
[1748340987126,2.66923814,176.01,176.0,8.9540887]
[1748340990940,2.66923814,176.01,176.0,0.04235689]
[1748340992641,8.34853814,176.01,176.0,0.04235689]
[1748340993042,5.6793,176.01,176.0,0.04235689]
[1748340994647,5.6791,176.02,176.0,0.04235689]
[1748340994948,2.6694824,176.01,176.0,0.04235689]
[1748340995546,8.3487824,176.01,176.0,0.04235689]
[1748340997151,8.34907158,176.01,176.0,0.04235689]
[1748340997745,2.66992873,176.01,176.0,0.04235689]
[1748340998829,5.6788,176.03,176.0,5.72195689]
[1748340999058,3.97168844,176.04,176.0,0.04235689]
[1748340999542,5.6788,176.03,176.0,5.72195689]
[1748341000941,5.71598844,176.04,176.01,5.6792]
[1748341001135,0.03758844,176.04,176.0,0.04235689]
[1748341001849,0.03758844,176.04,176.03,5.6786]
[1748341002348,0.03758844,176.04,176.02,5.6789]
[1748341003246,0.03758844,176.04,176.0,0.04235689]
[1748341003645,0.03758844,176.04,176.0,115.96235689]
[1748341003845,0.03758844,176.04,176.03,5.6786]
[1748341006251,115.93758844,176.04,176.0,0.04235689]
[1748341006848,5.6793,176.01,176.0,0.04235689]
[1748341019258,5.6791,176.02,176.0,0.04235689]
[1748341019459,115.93758844,176.04,176.0,0.04235689]
[1748341019758,5.6802,175.99,175.91,115.9]
[1748341019960,8.91480324,175.99,175.91,119.13460324]
[1748341020251,8.91480324,175.99,175.95,5.681]
[1748341020658,8.95204165,175.99,175.96,5.6809]
[1748341021460,5.6803,175.98,175.95,5.71758251]
[1748341021763,5.6803,175.98,175.95,0.03648251]
[1748341022763,5.6803,175.98,175.95,5.71768251]
[1748341026865,5.6806,175.97,175.95,0.03648251]
[1748341027066,0.03723841,175.99,175.95,0.03648251]
[1748341027369,5.6804,175.98,175.95,5.71748251]
[1748341029970,5.6804,175.98,175.95,0.03648251]
[1748341031071,0.03723841,175.99,175.95,0.03648251]
[1748341031873,5.6803,175.98,175.95,0.03648251]
[1748341033076,5.6806,175.97,175.95,0.03648251]
[1748341037174,5.6809,175.96,175.95,0.03648251]
[1748341037975,5.6807,175.97,175.95,0.03648251]
[1748341038878,5.6809,175.96,175.95,0.03648251]
[1748341039679,5.6807,175.97,175.95,0.03648251]
[1748341040378,5.6809,175.96,175.95,0.03648251]
[1748341040577,0.03723841,175.99,175.95,0.03648251]
[1748341041478,0.03723841,175.99,175.95,115.81648251]
[1748341042179,0.03723841,175.99,175.98,5.6802]
[1748341043977,0.03723841,175.99,175.98,8.91157306]
[1748341045383,0.03723841,175.99,175.98,5.6802]
[1748341048480,0.03723841,175.99,175.96,2.0621]
[1748341048983,0.03723841,175.99,175.98,5.6802]
[1748341053378,1.985,176.09,175.96,2.0621]
[1748341053582,115.56,176.07,175.97,8.99507353]
[1748341053784,115.56,176.07,175.98,115.56]
[1748341054483,0.04064903,176.04,176.01,0.03871326]
[1748341054781,0.04064903,176.04,176.03,5.6784]
[1748341054983,0.04064903,176.04,176.01,0.03871326]
[1748341055385,5.71914903,176.04,176.01,5.71791326]
[1748341055682,0.04064903,176.04,176.01,0.03871326]
[1748341055873,5.6788,176.03,176.01,0.03871326]
[1748341056477,0.04064903,176.04,176.01,0.03871326]
[1748341056678,5.6786,176.03,176.01,0.03871326]
[1748341056883,0.04064903,176.04,176.01,0.03871326]
[1748341057077,5.71904903,176.04,176.01,0.03871326]
[1748341057382,0.04064903,176.04,176.01,5.71801326]
[1748341057583,0.04064903,176.04,176.01,0.03871326]
[1748341058484,5.71894903,176.04,176.01,0.03871326]
[1748341059282,0.04064903,176.04,176.01,5.71771326]
[1748341059583,0.04064903,176.04,176.01,0.03871326]
[1748341059884,5.71914903,176.04,176.01,5.71801326]
[1748341060380,5.71914903,176.04,176.01,0.03871326]
[1748341062285,5.6789,176.02,176.01,0.03871326]
[1748341066387,121.2187,176.03,176.01,0.03871326]
[1748341067689,5.6789,176.02,176.01,0.03871326]
[1748341087402,5.6789,176.02,176.01,1.326e-05]
[1748341087803,115.54,176.03,176.01,1.326e-05]
[1748341088499,121.2188,176.03,176.01,1.326e-05]
[1748341088900,115.54,176.03,176.01,1.326e-05]
[1748341091106,115.54,176.03,176.01,5.67911326]
[1748341091506,115.54,176.03,176.01,1.326e-05]
[1748341091709,121.2187,176.03,176.01,1.326e-05]
[1748341092306,115.54,176.03,176.01,1.326e-05]
[1748341093311,121.2187,176.03,176.01,1.326e-05]
[1748341095313,115.54,176.03,176.01,1.326e-05]
[1748341095909,115.54,176.03,176.02,5.6789]
[1748341096213,0.04064903,176.04,176.01,1.326e-05]
[1748341096411,0.04064903,176.04,176.03,5.6786]
[1748341097709,0.04064903,176.04,176.01,1.326e-05]
[1748341098417,0.04064903,176.04,176.02,5.6787]
[1748341098716,0.04064903,176.04,176.01,1.326e-05]
[1748341099117,0.04064903,176.04,176.02,5.6789]
[1748341100214,0.04064903,176.04,176.01,1.326e-05]
[1748341100516,5.71914903,176.04,176.01,1.326e-05]
[1748341101317,5.6787,176.03,176.01,1.326e-05]
[1748341103116,5.6789,176.02,176.01,1.326e-05]
[1748341103614,0.04064903,176.04,176.01,1.326e-05]
[1748341104319,0.04064903,176.04,176.02,5.6787]
[1748341105321,0.04064903,176.04,176.01,1.326e-05]
[1748341105520,5.71924903,176.04,176.01,1.326e-05]
[1748341106417,5.6787,176.03,176.01,1.326e-05]
[1748341107422,5.71904903,176.04,176.01,1.326e-05]
[1748341108425,0.04064903,176.04,176.01,1.326e-05]
[1748341108921,0.04064903,176.04,176.02,5.6786]
[1748341110526,0.04064903,176.04,176.01,1.326e-05]
[1748341111322,5.6789,176.03,176.01,1.326e-05]
[1748341111822,5.71914903,176.04,176.01,1.326e-05]
[1748341112122,5.71914903,176.04,176.01,5.67921326]
[1748341112322,0.04064903,176.04,176.01,1.326e-05]
[1748341112713,0.04064903,176.04,176.02,5.6789]
[1748341112918,0.04064903,176.04,176.01,1.326e-05]
[1748341113522,0.04064903,176.04,176.01,5.67911326]
[1748341114414,0.04064903,176.04,176.01,1.326e-05]
[1748341115019,5.71914903,176.04,176.01,1.326e-05]
[1748341115828,5.6787,176.03,176.01,1.326e-05]
[1748341116224,0.04064903,176.04,176.01,1.326e-05]
[1748341116425,5.6789,176.02,176.01,1.326e-05]
[1748341116725,120.8989,176.02,176.01,1.326e-05]
[1748341122019,120.8989,176.02,175.93,1.9666]
[1748341122020,5.681,175.96,175.93,5.6817]
[1748341122225,117.2565,176.02,175.92,109.9715]
[1748341122425,115.22,176.02,175.97,5.6804]
[1748341122627,115.22,176.02,175.92,109.9715]
[1748341123026,0.04183145,175.99,175.98,5.68]
[1748341126228,0.04183145,175.99,175.97,5.6805]
[1748341128628,0.04183145,175.99,175.98,5.6802]
[1748341136436,0.04183145,175.99,175.98,120.9002]
[1748341140745,3.145e-05,175.99,175.98,120.9002]
[1748341143844,3.145e-05,175.99,175.98,228.8002]
[1748341144640,3.145e-05,175.99,175.98,120.9002]
[1748341144847,3.145e-05,175.99,175.98,228.8002]
[1748341145142,3.145e-05,175.99,175.97,107.9]
[1748341145535,3.145e-05,175.99,175.98,5.6802]
[1748341153555,3.145e-05,175.99,175.97,5.6804]
[1748341153752,3.145e-05,175.99,175.95,0.03891303]
[1748341156350,5.6803,175.98,175.95,0.03891303]
[1748341158859,5.6805,175.97,175.95,0.03891303]
[1748341159361,3.145e-05,175.99,175.95,5.72001303]
[1748341159664,3.145e-05,175.99,175.95,0.03891303]
[1748341159961,3.145e-05,175.99,175.95,5.71981303]
[1748341160461,5.6803,175.98,175.95,5.71981303]
[1748341160859,3.145e-05,175.99,175.98,5.6802]
[1748341162061,3.145e-05,175.99,175.95,0.03891303]
[1748341162468,115.10003145,175.99,175.95,0.03891303]
[1748341163163,5.6809,175.96,175.95,0.03891303]
[1748341175166,115.10003145,175.99,175.95,0.03891303]
[1748341175971,5.6807,175.97,175.95,0.03891303]
[1748341176873,5.6809,175.96,175.95,0.03891303]
[1748341177060,115.10003145,175.99,175.95,0.03891303]
[1748341177260,5.6808,175.97,175.95,0.03891303]
[1748341178073,5.6809,175.96,175.95,0.03891303]
[1748341182677,5.6808,175.97,175.95,0.03891303]
[1748341183674,115.10003145,175.99,175.95,0.03891303]
[1748341183675,5.6809,175.96,175.95,0.03891303]
[1748341187576,5.6807,175.97,175.95,5.71991303]
[1748341187775,115.10003145,175.99,175.95,0.03891303]
[1748341188082,5.67993145,175.99,175.96,5.6806]
[1748341188279,5.67993145,175.99,175.96,107.94]
[1748341189076,5.67993145,175.99,175.96,113.6206]
[1748341189582,5.67993145,175.99,175.97,5.6805]
[1748341191678,3.145e-05,175.99,175.97,5.6805]
[1748341192283,3.145e-05,175.99,175.98,5.6802]
[1748341201182,3.145e-05,175.99,175.96,5.6808]
[1748341201388,3.145e-05,175.99,175.97,107.92]
[1748341201890,5.68003145,175.99,175.97,107.92]
[1748341202581,5.68003145,175.99,175.97,113.6005]
[1748341203079,3.145e-05,175.99,175.97,113.6005]
[1748341204287,3.145e-05,175.99,175.98,5.6802]
[1748341204591,3.145e-05,175.99,175.97,107.92]
[1748341206389,3.145e-05,175.99,175.98,5.6802]
[1748341211187,3.145e-05,175.99,175.97,113.6004]
[1748341211995,3.145e-05,175.99,175.96,5.6808]
[1748341212293,3.145e-05,175.99,175.96,107.92]
[1748341212593,5.68003145,175.99,175.96,113.6007]
[1748341212891,3.145e-05,175.99,175.95,0.03891303]
[1748341213690,5.6804,175.98,175.95,0.03891303]
[1748341213993,3.145e-05,175.99,175.95,0.03891303]
[1748341214390,3.145e-05,175.99,175.96,5.6808]
[1748341214692,3.145e-05,175.99,175.95,0.03891303]
[1748341215394,3.145e-05,175.99,175.97,5.6805]
[1748341215887,5.68013145,175.99,175.96,5.6807]
[1748341217795,5.6802,175.98,175.95,113.64001303]
[1748341219086,5.6806,175.97,175.95,107.95891303]
[1748341220197,5.6803,175.98,175.95,113.64011303]
[1748341220397,3.145e-05,175.99,175.95,107.95891303]
[1748341220690,5.6803,175.98,175.95,0.03891303]
[1748341221284,3.145e-05,175.99,175.95,0.03891303]
[1748341221688,5.6807,175.97,175.95,0.03891303]
[1748341224599,5.6809,175.96,175.95,0.03891303]
[1748341234010,5.6806,175.97,175.95,0.03891303]
[1748341234810,5.6809,175.96,175.95,0.03891303]
[1748341244120,8.91594684,175.96,175.95,0.03891303]
[1748341258322,5.6809,175.96,175.95,0.03891303]
[1748341258518,8.91594684,175.96,175.95,0.03891303]
[1748341265628,3.23504684,175.96,175.88,1.3122999]
[1748341265825,3.23504684,175.92,175.87,1.3122999]
[1748341266123,3.23504684,175.92,175.85,224.6722999]
[1748341266722,0.03989708,175.9,175.87,0.03745792]
[1748341267319,5.72289708,175.9,175.87,0.03745792]
[1748341268527,5.72289708,175.9,175.87,5.72115792]
[1748341269122,8.95794392,175.9,175.87,5.72115792]
[1748341269426,5.6834,175.89,175.87,0.03745792]
[1748341269929,3.27494392,175.9,175.87,0.03745792]
[1748341269930,3.23504684,175.88,175.87,0.03745792]
[1748341270222,3.23504684,175.88,175.84,1.3122999]
[1748341270424,3.23504684,175.86,175.84,1.3122999]
[1748341270617,5.6847,175.85,175.83,1.3122999]
[1748341270817,5.6847,175.85,175.81,5.6857]
[1748341271329,5.72462041,175.85,175.81,5.72680015]
[1748341271621,5.72462041,175.85,175.82,5.6853]
[1748341273720,0.03992041,175.85,175.84,5.6847]
[1748341274120,0.03992041,175.85,175.81,3.27614699]
[1748341274722,0.03992041,175.85,175.83,5.685]
[1748341274926,0.03992041,175.85,175.81,3.27614699]
[1748341275323,0.03992041,175.85,175.81,5.16104699]
[1748341275823,0.03992041,175.85,175.84,5.6847]
[1748341283330,0.03992041,175.85,175.82,107.98]
[1748341283631,0.03992041,175.85,175.83,5.6849]
[1748341283838,0.03992041,175.85,175.84,3.35528617]
[1748341284329,0.03992041,175.85,175.83,5.6849]
[1748341284633,0.03992041,175.85,175.84,5.6848]
[1748341294144,2.041e-05,175.85,175.84,8.91984684]
[1748341294345,115.44,175.97,175.84,124.35504684]
[1748341294542,115.44,175.97,175.89,3.23504684]
[1748341294843,5.6812,175.95,175.92,5.682]
[1748341295241,5.71926853,175.95,175.92,5.72460574]
[1748341295849,5.6815,175.94,175.92,5.72460574]
[1748341296049,0.03806853,175.95,175.92,5.72460574]
[1748341296440,5.71946853,175.95,175.92,5.72460574]
[1748341297350,0.03806853,175.95,175.92,0.04260574]
[1748341297949,0.03806853,175.95,175.94,5.6815]
[1748341299548,0.03806853,175.95,175.93,5.6817]
[1748341299750,0.03806853,175.95,175.92,0.04260574]
[1748341300149,0.03806853,175.95,175.94,5.6815]
[1748341317855,0.03806853,175.95,175.94,113.6215]
[1748341320259,115.4,176.03,176.0,5.6793]
[1748341320452,115.4,176.03,175.94,107.94]
[1748341320653,115.34,176.06,175.95,115.34]
[1748341320853,115.34,176.06,175.99,5.6798]
[1748341321250,5.6791,176.02,176.01,0.042497]
[1748341323450,5.6804,175.98,175.95,107.92]
[1748341323856,5.6804,175.98,175.95,5.681]
[1748341324454,5.72006604,175.98,175.95,5.72252672]
[1748341324864,0.03966604,175.98,175.95,0.04152672]
[1748341325859,5.6807,175.97,175.95,0.04152672]
[1748341328462,5.71996604,175.98,175.95,5.72272672]
[1748341328662,5.71996604,175.98,175.95,0.04152672]
[1748341328862,0.03966604,175.98,175.95,0.04152672]
[1748341329263,5.71996604,175.98,175.96,5.6808]
[1748341329463,0.03966604,175.98,175.95,0.04152672]
[1748341329866,5.6808,175.97,175.95,5.72252672]
[1748341330267,0.03966604,175.98,175.95,5.72252672]
[1748341330864,5.72006604,175.98,175.95,5.72252672]
[1748341331072,5.72006604,175.98,175.96,5.6808]
[1748341331469,5.72006604,175.98,175.95,0.04152672]
[1748341332374,5.72006604,175.98,175.95,5.72252672]
[1748341332571,5.6805,175.97,175.95,0.04152672]
[1748341335372,5.6809,175.96,175.95,0.04152672]
[1748341335770,8.91336525,175.96,175.95,0.04152672]
[1748341336069,3.23246525,175.96,175.89,1.30380999]
[1748341336275,3.23246525,175.94,175.88,107.92]
[1748341336573,3.23246525,175.94,175.87,600.06380999]
[1748341336775,5.682,175.93,175.9,5.6827]
[1748341336971,3.23246525,175.94,175.86,121.82174103]
[1748341337175,0.04077389,175.93,175.9,0.03985103]
[1748341337471,0.04077389,175.93,175.9,3.27231628]
[1748341337974,0.04077389,175.93,175.92,5.6822]
[1748341364605,3.27556074,175.93,175.9,0.03985103]
[1748341365002,5.6825,175.91,175.9,0.03985103]
[1748341366009,8.91728685,175.91,175.9,0.03985103]
[1748341367404,3.23478685,175.91,175.83,1.30380999]
[1748341367608,3.23478685,175.88,175.82,1.30380999]
[1748341367799,3.23478685,175.88,175.81,115.3]
[1748341368005,5.6845,175.85,175.81,115.3]
[1748341368209,3.23478685,175.88,175.83,5.6851]
[1748341368408,0.04330074,175.87,175.84,0.04237174]
[1748341368705,3.23478685,175.86,175.84,0.04237174]
[1748341369109,5.6844,175.85,175.84,0.04237174]
[1748341371003,115.3,175.86,175.84,0.04237174]
[1748341372109,5.6844,175.85,175.84,0.04237174]
[1748341372807,120.9842,175.86,175.84,0.04237174]
[1748341374909,5.6844,175.85,175.84,0.04237174]
[1748341375910,120.9842,175.86,175.84,0.04237174]
[1748341376307,115.3,175.86,175.84,0.04237174]
[1748341377306,5.6844,175.85,175.84,0.04237174]
[1748341378422,115.3,175.86,175.84,0.04237174]
[1748341379113,120.9841,175.86,175.84,0.04237174]
[1748341379314,115.3,175.86,175.84,0.04237174]
[1748341379716,115.3,175.86,175.84,5.72707174]
[1748341380213,120.9841,175.86,175.84,0.04237174]
[1748341381006,5.6844,175.85,175.84,0.04237174]
[1748341381810,120.9842,175.86,175.84,0.04237174]
[1748341383827,115.3,175.86,175.84,5.72707174]
[1748341384223,120.9842,175.86,175.84,0.04237174]
[1748341385222,5.6844,175.85,175.84,0.04237174]
[1748341389423,120.9842,175.86,175.84,0.04237174]
[1748341389824,115.3,175.86,175.84,0.04237174]
[1748341390334,3.28131853,175.87,175.84,0.04237174]
[1748341390527,3.28131853,175.87,175.85,5.6844]
[1748341391432,8.96511853,175.87,175.84,5.72697174]
[1748341392427,5.72710074,175.87,175.84,5.72697174]
[1748341392634,8.96511853,175.87,175.84,5.72697174]
[1748341396333,5.72710074,175.87,175.84,5.72697174]
[1748341396544,8.96511853,175.87,175.84,5.72697174]
[1748341397834,3.23801779,175.85,175.84,0.04237174]
[1748341398531,8.92241779,175.85,175.84,0.04237174]
[1748341398730,0.04330074,175.87,175.84,0.04237174]
[1748341398931,3.28131853,175.87,175.85,5.6842]
[1748341399136,3.28131853,175.87,175.84,0.04237174]
[1748341399732,3.28131853,175.87,175.85,5.6843]
[1748341400027,3.28131853,175.87,175.84,0.04237174]
[1748341400230,3.28131853,175.87,175.85,5.6841]
[1748341401232,0.04330074,175.87,175.86,5.6841]
[1748341402337,5.72710074,175.87,175.85,5.6843]
[1748341402538,0.04330074,175.87,175.85,5.6843]
[1748341404439,5.72710074,175.87,175.85,5.6843]
[1748341405942,5.6842,175.86,175.84,0.04237174]
[1748341408241,5.6842,175.86,175.84,5.72697174]
[1748341410042,8.96511853,175.87,175.85,5.6844]
[1748341411241,0.04330074,175.87,175.85,5.6844]
[1748341411442,3.28131853,175.87,175.85,5.6844]
[1748341412141,3.28131853,175.87,175.84,0.04237174]
[1748341412733,3.28131853,175.87,175.85,5.6844]
[1748341413743,8.96511853,175.87,175.85,5.6844]
[1748341414134,8.96511853,175.87,175.84,5.72697174]
[1748341415444,5.6841,175.86,175.84,0.04237174]
[1748341415739,3.23801779,175.85,175.84,0.04237174]
[1748341416045,8.92241779,175.85,175.84,0.04237174]
[1748341421841,124.08241779,175.85,175.84,0.04237174]
[1748341427857,5.6856,175.82,175.79,5.6862]
[1748341428161,3.23801779,175.81,175.79,5.6862]
[1748341430269,8.92371779,175.81,175.79,5.6862]
[1748341430672,3.28118422,175.82,175.8,5.686]
[1748341431366,8.96668422,175.82,175.79,5.6862]
[1748341431666,0.04316643,175.82,175.78,0.03946398]
[1748341432067,0.04316643,175.82,175.81,5.6857]
[1748341435864,0.04316643,175.82,175.8,5.6859]
[1748341441572,5.72866643,175.82,175.79,5.6862]
[1748341441777,3.28118422,175.82,175.78,0.03946398]
[1748341442479,5.6858,175.81,175.78,5.72616398]
[1748341444481,8.96668422,175.82,175.78,5.72616398]
[1748341444682,8.96668422,175.82,175.79,5.6863]
[1748341446087,3.28118422,175.82,175.8,5.686]
[1748341446381,3.28118422,175.82,175.78,0.03946398]
[1748341446877,3.28118422,175.82,175.79,5.6862]
[1748341447082,3.28118422,175.82,175.78,0.03946398]
[1748341447482,8.96658422,175.82,175.8,5.6859]
[1748341449480,3.28118422,175.82,175.8,5.6859]
[1748341454789,0.04316643,175.82,175.81,5.6857]
[1748341458289,0.04316643,175.82,175.78,0.03946398]
[1748341458888,0.04316643,175.82,175.8,5.6858]
[1748341459291,5.72856643,175.82,175.79,5.6862]
[1748341459892,5.72856643,175.82,175.78,0.03946398]
[1748341460086,0.04316643,175.82,175.78,0.03946398]
[1748341460279,3.23893021,175.81,175.78,0.03946398]
[1748341460587,5.686,175.8,175.78,0.03946398]
[1748341460884,3.23893021,175.81,175.78,0.03946398]
[1748341461091,5.686,175.8,175.78,0.03946398]
[1748341462784,118.31893021,175.81,175.78,5.72596398]
[1748341463092,115.08,175.81,175.78,0.03946398]
[1748341463293,115.08,175.81,175.8,5.686]
[1748341463494,0.04316643,175.82,175.8,5.686]
[1748341464194,0.04316643,175.82,175.78,0.03946398]
[1748341464492,0.04316643,175.82,175.79,5.6862]
[1748341464493,5.72856643,175.82,175.79,5.6862]
[1748341465797,5.72856643,175.82,175.78,0.03946398]
[1748341466192,5.72856643,175.82,175.79,5.6861]
[1748341466792,2.95685395,175.81,175.79,5.6861]
[1748341467094,2.95685395,175.8,175.79,5.6861]
[1748341468094,5.72856643,175.82,175.79,5.6861]
[1748341468395,2.95424351,175.81,175.79,5.6861]
[1748341468593,2.95424351,175.8,175.79,5.6861]
[1748341468794,5.72856643,175.82,175.79,5.6861]
[1748341469093,2.95281507,175.81,175.79,5.6861]
[1748341469294,2.95281507,175.8,175.79,5.6861]
[1748341469602,2.9528444,175.8,175.79,5.6861]
[1748341470101,2.95311288,175.8,175.79,5.6861]
[1748341470603,2.95297502,175.8,175.79,5.6861]
[1748341471295,2.95309928,175.8,175.79,5.6861]
[1748341472003,2.95319616,175.8,175.79,5.6861]
[1748341472298,2.95319616,175.8,175.78,0.03946398]
[1748341472490,2.95319616,175.79,175.78,0.03946398]
[1748341472687,8.63959616,175.79,175.78,0.03946398]
[1748341473606,8.63919477,175.79,175.78,0.03946398]
[1748341474302,5.6876,175.76,175.71,115.24297588]
[1748341474496,2.95282252,175.75,175.71,113.9367]
[1748341474802,2.95282252,175.74,175.71,113.9367]
[1748341475002,2.95282252,175.73,175.72,5.6886]
[1748341475196,2.95282252,175.73,175.71,0.04339864]
[1748341475402,0.04136224,175.74,175.72,5.6884]
[1748341475598,2.95190753,175.73,175.72,5.6884]
[1748341475790,3.28029245,175.74,175.71,0.04339864]
[1748341476087,2.95025387,175.73,175.72,5.6886]
[1748341476295,2.95027617,175.73,175.71,0.04339864]
[1748341476494,2.95027686,175.72,175.71,0.04339864]
[1748341476692,0.04136224,175.74,175.73,5.6883]
[1748341476887,2.99037102,175.74,175.73,5.6883]
[1748341477090,0.04136224,175.74,175.73,5.6883]
[1748341477288,2.99046766,175.74,175.73,5.6883]
[1748341477699,2.99042578,175.74,175.73,5.6883]
[1748341478297,2.98942913,175.74,175.73,5.6883]
[1748341478592,2.98948427,175.74,175.73,5.6883]
[1748341478792,2.98948427,175.74,175.71,0.04339864]
[1748341478999,2.94812203,175.73,175.71,0.04339864]
[1748341479293,3.28029245,175.74,175.71,0.04339864]
[1748341479496,5.6885,175.73,175.71,0.04339864]
[1748341479693,2.94735205,175.72,175.71,0.04339864]
[1748341479999,2.94735205,175.72,175.71,5.73229864]
[1748341480598,2.94644786,175.72,175.71,5.73229864]
[1748341480986,2.94567622,175.72,175.71,5.73229864]
[1748341481699,2.94495284,175.72,175.71,0.04339864]
[1748341482293,11.87254423,175.72,175.71,0.04339864]
[1748341482894,11.8716528,175.72,175.71,0.04339864]
[1748341485201,8.92753021,175.72,175.71,0.04339864]
[1748341485399,11.8695543,175.72,175.71,0.04339864]
[1748341486201,8.92753021,175.72,175.71,0.04339864]
[1748341486396,11.86844924,175.72,175.71,0.04339864]